bitfinex-derivatives/quotes_ETHF0:USTF0_20250816
["timestamp","ask_amount","ask_price","bid_price","bid_amount"]
[1755349882796,4.73411377,4414.9,4414.8,1.4823]
[1755349883295,0.37221791,4414.9,4414.8,1.4823]
[1755349883495,0.95301791,4414.9,4414.8,1.1064]
[1755349883688,4.77471791,4414.9,4414.4,0.2478]
[1755349883887,0.5453,4414.2,4414.1,0.1764]
[1755349884092,1.2125,4414.2,4414.1,0.6904]
[1755349884492,0.5982,4414.2,4413.1,3.2078]
[1755349884696,0.8065,4414.0,4413.9,1.4823]
[1755349885097,0.2612,4414.0,4413.9,1.4823]
[1755349885299,0.3705,4414.3,4414.0,0.8899]
[1755349885496,1.2125,4414.3,4414.2,0.5924]
[1755349885798,1.32628227,4414.3,4414.2,1.4823]
[1755349886192,1.32628227,4414.3,4413.8,0.3759]
[1755349886396,0.6143,4414.1,4413.2,0.8899]
[1755349886592,0.48428227,4414.0,4413.3,0.514]
[1755349886791,0.2438,4413.9,4413.4,0.2662]
[1755349886994,0.6317,4414.3,4414.2,0.8402]
[1755349887199,0.74547714,4414.3,4414.2,1.4823]
[1755349887401,1.08247714,4414.3,4414.2,1.4823]
[1755349887889,0.37497714,4414.3,4414.2,1.4823]
[1755349888501,0.11377714,4414.3,4414.2,1.4823]
[1755349888702,3.2078,4414.4,4414.2,0.5924]
[1755349888904,3.2078,4414.4,4414.3,1.4823]
[1755349889194,3.3215846,4414.4,4414.3,1.4823]
[1755349889898,3.2078,4414.4,4414.3,1.4823]
[1755349890500,3.2078,4414.9,4414.8,1.4823]
[1755349891497,4.53416598,4414.9,4414.8,1.1064]
[1755349891903,4.53416598,4414.9,4414.8,1.4823]
[1755349892999,4.53416598,4414.9,4414.8,1.1064]
[1755349893199,4.77756598,4414.9,4414.8,0.8554]
[1755349893999,4.16326598,4414.9,4414.2,3.2078]
[1755349894199,0.9687,4414.3,4414.2,4.6901]
[1755349894401,0.2612,4414.3,4414.2,4.6901]
[1755349895306,0.3754194,4414.3,4414.2,4.6901]
[1755349896904,0.1142194,4414.3,4414.2,4.6901]
[1755349897603,0.3754194,4414.3,4414.2,4.6901]
[1755349898206,0.2612,4414.3,4414.2,4.6901]
[1755349898602,0.6143,4414.7,4414.2,4.6901]
[1755349898810,0.11421628,4414.6,4414.5,1.2345]
[1755349899110,0.11421628,4414.6,4414.5,1.4823]
[1755349902713,1.28607122,4414.6,4414.5,1.4823]
[1755349902911,1.52987122,4414.6,4414.5,1.4823]
[1755349905911,1.52995995,4414.6,4414.5,1.4823]
[1755349909412,0.363,4414.5,4414.4,0.3404]
[1755349909615,1.526066,4414.5,4414.4,1.5019]
[1755349910014,1.32281628,4414.5,4414.4,1.5019]
[1755349910218,1.52606998,4414.5,4414.4,1.5019]
[1755349910419,0.31746998,4414.5,4414.4,1.5019]
[1755349912321,0.11421628,4414.5,4414.4,1.5019]
[1755349912521,0.11421628,4414.8,4414.4,1.5019]
[1755349912722,1.1131608,4414.7,4414.6,0.4247]
[1755349912920,1.1630608,4414.7,4414.6,1.5019]
[1755349913616,1.5260608,4414.7,4414.6,1.5019]
[1755349913825,1.32281628,4414.7,4414.6,1.5019]
[1755349914321,1.5260701,4414.7,4414.6,1.5019]
[1755349914822,1.7878701,4414.7,4414.6,1.5019]
[1755349915017,0.6105,4414.6,4414.2,3.473]
[1755349915216,1.2086,4414.3,4414.2,4.4518]
[1755349915411,1.32281628,4414.3,4414.2,4.7097]
[1755349916118,1.32281628,4414.3,4414.2,3.8134]
[1755349916318,1.58461628,4414.3,4414.2,3.8134]
[1755349916522,1.32281628,4414.3,4414.2,4.7097]
[1755349917126,1.07531628,4414.3,4414.2,4.7097]
[1755349917621,1.32281628,4414.3,4414.2,4.7097]
[1755349917821,0.11421628,4414.3,4414.2,4.7097]
[1755349918224,0.74261628,4414.3,4414.2,4.7097]
[1755349918823,0.37961628,4414.3,4414.2,4.7097]
[1755349919120,0.11421628,4414.3,4414.2,4.7097]
[1755349919426,0.9611,4415.2,4415.1,1.5019]
[1755349919624,0.58482907,4415.2,4415.1,1.5019]
[1755349920326,0.11243494,4415.2,4415.1,1.5019]
[1755349921024,3.5708,4416.5,4415.4,0.45264]
[1755349921222,0.58478609,4416.4,4416.3,1.5019]
[1755349921627,1.52798609,4416.4,4416.3,1.5019]
[1755349922132,0.31938609,4416.4,4416.3,1.5019]
[1755349922326,0.11241586,4416.4,4416.3,1.5019]
[1755349922524,0.2475,4417.0,4416.9,0.5983]
[1755349922525,0.8456,4417.0,4416.9,0.5983]
[1755349922825,0.4308,4416.4,4416.3,1.5019]
[1755349923131,0.9611,4416.4,4416.3,1.5019]
[1755349924132,0.4327,4416.4,4416.3,1.5019]
[1755349924432,0.2654,4416.4,4416.3,1.5019]
[1755349927227,0.363,4416.7,4416.3,0.5983]
[1755349927433,0.8599,4416.9,4416.8,0.5983]
[1755349927632,0.8599,4416.9,4416.8,1.1094]
[1755349927834,0.5981,4416.9,4416.8,1.5019]
[1755349928132,1.2086,4416.9,4416.8,1.5019]
[1755349928631,4.1689,4417.2,4417.1,1.5019]
[1755349929430,4.4164,4417.2,4417.1,1.5019]
[1755349930438,4.1689,4417.2,4417.1,1.5019]
[1755349930734,3.2078,4417.2,4417.1,1.5019]
[1755349930933,3.4732,4417.2,4417.1,1.5019]
[1755349931330,4.1689,4417.2,4417.1,1.5019]
[1755349931531,4.4164,4417.2,4417.1,1.5019]
[1755349931729,1.2086,4417.2,4417.1,1.5019]
[1755349932135,0.9611,4417.2,4417.1,1.5019]
[1755349932530,1.2086,4418.1,4418.0,0.5983]
[1755349932732,0.7938,4418.1,4418.0,1.5019]
[1755349932932,3.2078,4418.3,4418.1,1.5019]
[1755349933134,3.4553,4418.8,4418.1,1.5019]
[1755349933642,0.363,4418.7,4418.1,1.5019]
[1755349933844,1.3086,4418.2,4418.1,0.8635]
[1755349934045,1.5704,4418.2,4418.1,0.8635]
[1755349934343,0.1,4418.2,4418.1,1.5019]
[1755349934740,1.3086,4418.2,4418.1,1.5019]
[1755349934939,1.5704,4418.2,4418.1,0.2652]
[1755349935340,1.5704,4418.2,4418.1,0.4388]
[1755349935845,1.5704,4418.2,4418.1,0.6056]
[1755349936842,1.4704,4417.9,4417.8,0.4388]
[1755349937742,1.4704,4417.9,4416.9,3.2078]
[1755349937943,0.9611,4417.1,4417.0,1.5019]
[1755349938147,1.2086,4417.7,4417.6,0.5983]
[1755349938348,1.2086,4417.7,4417.6,1.5019]
[1755349939150,1.4692,4417.7,4417.6,0.8635]
[1755349939348,1.4692,4417.7,4417.6,0.2652]
[1755349939550,0.5981,4417.7,4417.3,0.6379]
[1755349939845,1.474,4417.5,4417.4,0.4247]
[1755349941248,1.474,4417.5,4417.4,0.5924]
[1755349941450,1.474,4417.5,4417.4,1.0941]
[1755349941749,1.474,4417.5,4417.4,1.4775]
[1755349942549,1.474,4417.5,4417.4,1.0941]
[1755349942748,1.2134,4417.5,4417.4,1.0941]
[1755349943051,1.2134,4417.5,4417.4,1.4775]
[1755349944154,0.1,4418.2,4417.4,1.4775]
[1755349944155,0.3637,4417.8,4417.5,0.9011]
[1755349944354,0.6118,4417.8,4417.7,0.5764]
[1755349944549,0.9588,4417.8,4417.7,1.4775]
[1755349944856,1.0588,4418.2,4418.1,1.4775]
[1755349945152,1.3134,4418.2,4418.1,1.4775]
[1755349947658,1.574,4418.2,4418.1,1.0941]
[1755349948154,0.347,4417.6,4417.5,0.8469]
[1755349948352,1.474,4417.6,4417.5,0.5924]
[1755349949155,1.58173288,4417.6,4417.5,0.4247]
[1755349949351,1.58173288,4417.6,4417.5,0.2632]
[1755349949556,0.70283288,4417.6,4417.1,0.3834]
[1755349949757,0.5951,4417.3,4417.2,1.4775]
[1755349949947,1.2134,4417.3,4417.2,1.4775]
[1755349952154,0.1,4418.2,4418.1,1.2098]
[1755349952356,0.45584696,4418.2,4418.1,1.473]
[1755349952653,0.99174696,4418.2,4418.1,1.0508]
[1755349952854,1.09376596,4418.2,4417.8,0.2632]
[1755349953059,1.0446,4417.9,4417.8,0.8469]
[1755349953260,1.35749366,4417.9,4417.8,0.8469]
[1755349954063,1.35749366,4417.9,4417.8,1.2258]
[1755349954263,1.35749366,4417.9,4417.8,1.473]
[1755349955058,1.35749366,4417.9,4417.8,1.0941]
[1755349955265,1.35749366,4417.9,4417.8,0.8469]
[1755349955564,0.4203,4417.7,4417.6,0.5764]
[1755349955758,0.89174696,4417.7,4417.6,0.9553]
[1755349956359,1.09707249,4417.7,4417.6,1.473]
[1755349956561,0.89174696,4417.7,4417.6,1.473]
[1755349956764,1.35767246,4417.7,4417.6,0.2545]
[1755349957365,1.35767326,4417.7,4417.6,0.2545]
[1755349957566,0.4203,4417.4,4417.3,0.5924]
[1755349957766,1.15234696,4417.4,4417.3,0.5924]
[1755349958064,1.15234696,4417.4,4417.3,0.8469]
[1755349958261,0.6243,4416.9,4416.6,0.2545]
[1755349958465,0.73350969,4416.8,4416.5,0.5177]
[1755349958764,1.0446,4416.6,4416.5,0.8469]
[1755349958964,1.35780969,4416.6,4416.5,0.8469]
[1755349960565,1.35780969,4416.6,4416.5,1.2258]
[1755349960758,1.09720969,4416.6,4416.5,1.473]
[1755349961361,0.89174696,4416.6,4416.5,1.473]
[1755349962368,0.10774696,4416.6,4416.5,1.473]
[1755349962661,0.784,4416.6,4416.5,0.8469]
[1755349962861,0.89174696,4416.6,4416.5,0.8469]
[1755349963065,0.89174696,4416.6,4416.5,1.473]
[1755349966069,0.784,4416.6,4416.5,1.473]
[1755349967366,0.89186546,4416.6,4416.5,1.473]
[1755349974369,0.10786546,4416.6,4416.5,1.473]
[1755349974572,0.2533,4417.3,4417.2,0.5697]
[1755349974771,0.3643045,4417.3,4417.2,0.5697]
[1755349975275,0.3643045,4417.3,4417.2,1.4502]
[1755349975673,0.1110045,4417.3,4417.2,1.4502]
[1755349976077,0.3643045,4417.3,4417.2,1.4502]
[1755349976280,0.7425045,4417.3,4417.2,1.4502]
[1755349976871,0.1110045,4417.3,4417.2,1.4502]
[1755349978679,0.423,4416.7,4416.6,0.6775]
[1755349978878,0.91228759,4416.7,4416.6,0.8392]
[1755349979079,1.17058759,4416.7,4416.6,0.8392]
[1755349980183,0.53408759,4416.7,4416.1,0.514]
[1755349980383,0.423,4416.2,4416.1,0.8392]
[1755349980689,0.8012,4416.2,4416.1,1.4502]
[1755349983876,0.8012,4416.2,4416.0,3.2078]
[1755349983877,0.2533,4416.2,4416.0,3.2078]
[1755349984081,0.423,4415.6,4415.5,0.1617]
[1755349984385,1.37746633,4415.6,4415.5,0.1617]
[1755349984584,1.37746633,4415.6,4415.5,0.8392]
[1755349984786,1.37746633,4415.6,4415.5,0.2629]
[1755349984978,0.423,4415.4,4415.3,0.514]
[1755349985183,0.53418253,4415.4,4415.3,0.514]
[1755349985384,1.17068253,4415.4,4415.3,0.8392]
[1755349985585,1.17070299,4415.4,4415.3,0.8392]
[1755349985782,0.91240299,4415.4,4415.3,1.4502]
[1755349989987,0.8012,4415.4,4415.3,1.4502]
[1755349990488,0.6315,4415.4,4415.3,1.4502]
[1755349990689,0.11111336,4415.4,4415.3,1.4502]
[1755349990884,0.8012,4416.0,4415.9,0.3252]
[1755349991082,1.11888523,4416.0,4415.9,1.2057]
[1755349991284,0.9122975,4416.0,4415.9,1.4502]
[1755349991579,0.3782,4416.6,4416.0,0.8805]
[1755349991785,0.36435767,4416.5,4416.4,1.4502]
[1755349992287,3.2078,4416.7,4416.4,1.4502]
[1755349992485,0.11105244,4416.6,4416.4,0.5697]
[1755349992782,3.2078,4416.7,4416.6,0.6294]
[1755349992988,0.2583,4417.5,4416.6,3.7775]
[1755349993182,0.2583,4417.5,4417.4,0.8392]
[1755349993183,1.0595,4417.5,4417.4,0.8392]
[1755349993376,1.37700911,4417.5,4417.4,0.8392]
[1755349993982,0.99880911,4417.5,4416.7,0.2629]
[1755349994187,1.0595,4416.8,4416.7,0.8392]
[1755349994391,1.17052381,4416.8,4416.7,0.8392]
[1755349994778,1.17052381,4416.8,4416.7,1.2057]
[1755349996285,1.17052381,4416.8,4416.7,1.4502]
[1755349996482,0.91222381,4416.8,4416.7,1.4502]
[1755349996683,0.8012,4416.8,4416.7,1.4502]
[1755349996883,0.6315,4416.8,4416.7,1.4502]
[1755349997383,0.8012,4416.8,4416.7,1.4502]
[1755349998191,0.2533,4416.8,4416.7,1.4502]
[1755349998891,0.8,4416.8,4416.7,1.4502]
[1755350000192,0.9110024,4416.8,4416.7,1.4502]
[1755350000390,1.1553024,4416.8,4416.7,1.4502]
[1755350001497,1.1553024,4416.8,4416.7,0.514]
[1755350001795,1.0533,4416.3,4416.2,0.8419]
[1755350001995,1.0533,4416.3,4415.7,0.514]
[1755350001996,0.3791,4416.2,4415.7,0.514]
[1755350002298,0.6414,4415.8,4415.7,1.4577]
[1755350002492,0.2623,4415.8,4415.7,1.4577]
[1755350002796,0.809,4416.7,4416.6,1.4577]
[1755350003091,0.91845323,4416.7,4416.6,1.4577]
[1755350003396,1.16275323,4416.7,4416.6,0.6818]
[1755350003591,0.4299,4416.4,4416.3,3.5357]
[1755350003889,1.16275323,4416.4,4416.3,3.5357]
[1755350004091,0.1676,4415.7,4415.6,0.6741]
[1755350004299,0.1676,4415.7,4415.6,1.4577]
[1755350004300,0.809,4415.7,4415.6,1.4577]
[1755350005797,1.0533,4415.7,4415.6,0.8419]
[1755350006190,1.0533,4415.7,4415.6,1.0874]
[1755350006498,0.809,4415.7,4415.6,1.4577]
[1755350007000,1.0533,4415.7,4415.6,1.4577]
[1755350007998,0.809,4415.7,4415.6,1.4577]
[1755350008395,0.2623,4415.7,4415.6,1.4577]
[1755350008698,0.2623,4415.7,4415.5,3.2078]
[1755350008699,0.809,4416.4,4416.3,1.4577]
[1755350008898,0.91852864,4416.4,4416.3,1.4577]
[1755350010099,0.37182864,4416.4,4416.3,1.4577]
[1755350010994,0.75092864,4416.4,4416.3,1.4577]
[1755350011700,0.91852864,4416.4,4416.3,1.4577]
[1755350011998,1.16282864,4416.4,4416.3,0.8419]
[1755350012502,0.10952864,4416.4,4416.3,1.4577]
[1755350012699,0.2443,4417.2,4416.3,0.5734]
[1755350012901,0.74597822,4417.1,4417.0,0.3279]
[1755350013101,0.99027822,4417.1,4417.0,0.8419]
[1755350013495,1.36937822,4417.1,4417.0,0.8419]
[1755350013695,1.36937822,4417.1,4417.0,0.2553]
[1755350014095,1.36937822,4417.1,4417.0,0.6818]
[1755350014501,1.36937822,4417.1,4417.0,0.8419]
[1755350015201,1.12507822,4417.1,4417.0,0.8419]
[1755350015506,1.12507822,4417.1,4417.0,1.4577]
[1755350016202,1.12509873,4417.1,4417.0,1.4577]
[1755350017301,0.91853258,4417.1,4417.0,1.4577]
[1755350017896,0.10953258,4417.1,4417.0,1.4577]
[1755350018100,0.3791,4417.8,4417.0,1.2024]
[1755350018302,3.2078,4417.9,4417.6,1.4577]
[1755350018303,0.74599499,4417.7,4417.6,1.4577]
[1755350019000,1.12509499,4417.7,4417.6,1.4577]
[1755350019407,0.10953041,4417.7,4417.6,1.4577]
[1755350019701,3.2078,4417.9,4417.7,0.8843]
[1755350019909,3.4701,4417.9,4417.8,1.4577]
[1755350020100,3.95870546,4417.9,4417.8,1.4577]
[1755350020408,3.31730546,4417.9,4417.8,1.4577]
[1755350020903,0.10950546,4417.9,4417.8,1.4577]
[1755350021107,0.1,4418.2,4418.1,0.5734]
[1755350021307,0.20943811,4418.2,4418.1,1.4577]
[1755350022210,0.1,4418.2,4418.1,1.4577]
[1755350022704,3.2078,4418.6,4418.1,1.0874]
[1755350022908,3.2078,4418.6,4418.5,1.4577]
[1755350025610,3.2587,4419.3,4418.6,0.2587]
[1755350025918,0.91814108,4419.2,4419.1,0.8419]
[1755350026212,1.29474108,4419.2,4419.1,0.8419]
[1755350026410,1.1856,4419.2,4419.1,0.8419]
[1755350026814,1.1856,4419.2,4419.1,1.2122]
[1755350027012,0.9413,4419.2,4419.1,1.4577]
[1755350027314,1.1856,4419.2,4419.1,1.4577]
[1755350029112,1.1856,4419.2,4419.1,0.8419]
[1755350029316,0.5176,4418.9,4418.7,0.3792]
[1755350029516,1.2078,4418.8,4418.7,0.3326]
[1755350029718,1.2078,4418.8,4418.7,0.7118]
[1755350029911,0.9605,4418.8,4418.7,1.4547]
[1755350031613,0.3924,4418.7,4418.2,0.4908]
[1755350031814,0.6902,4419.2,4418.2,0.4908]
[1755350032020,0.2473,4419.2,4418.1,3.2078]
[1755350032215,0.4429,4419.1,4418.3,0.87]
[1755350032415,0.4429,4419.1,4418.4,0.87]
[1755350032718,0.658,4418.5,4418.4,1.4547]
[1755350034820,0.2656,4418.5,4418.4,1.4547]
[1755350035018,0.0505,4419.2,4418.7,0.5847]
[1755350035215,0.2656,4418.9,4418.8,1.2864]
[1755350035416,0.8293,4418.9,4418.8,1.4547]
[1755350036523,0.9605,4418.9,4418.8,1.4547]
[1755350036822,1.2078,4418.9,4418.8,0.8234]
[1755350037620,1.2078,4418.9,4418.8,0.4908]
[1755350037817,0.1713,4418.3,4418.2,0.8234]
[1755350038023,0.9605,4418.3,4418.2,1.4547]
[1755350038323,0.8293,4418.3,4418.2,1.4547]
[1755350039123,1.2078,4418.2,4418.1,3.6986]
[1755350039323,1.2078,4418.2,4418.1,4.0312]
[1755350039529,1.2078,4418.2,4418.1,4.4104]
[1755350040027,1.2078,4418.2,4418.1,4.6625]
[1755350040230,0.2656,4418.2,4418.1,4.6625]
[1755350040429,0.8293,4418.2,4418.1,4.6625]
[1755350041019,0.9605,4418.2,4418.1,4.6625]
[1755350041224,1.2078,4418.2,4418.1,1.4547]
[1755350042231,0.9605,4418.2,4418.1,1.4547]
[1755350042427,0.91,4418.2,4418.1,1.4547]
[1755350043030,0.9605,4418.2,4418.1,1.4547]
[1755350043330,1.2078,4418.2,4418.1,1.4547]
[1755350043829,0.9605,4418.2,4418.1,1.4547]
[1755350044328,0.91,4418.2,4418.1,1.4547]
[1755350045020,0.8293,4418.2,4418.1,4.6625]
[1755350045619,0.658,4418.2,4418.1,4.6625]
[1755350046125,0.2656,4418.2,4418.1,4.6625]
[1755350047128,21.069,4419.5,4418.7,0.5847]
[1755350047129,0.0505,4419.2,4418.7,0.5847]
[1755350047332,0.8293,4419.0,4418.9,0.5847]
[1755350047527,0.93592573,4419.0,4418.9,1.4547]
[1755350047728,1.06712573,4419.0,4418.9,1.4547]
[1755350048328,1.31442573,4419.0,4418.9,1.4547]
[1755350049230,1.52089844,4419.0,4418.9,1.4547]
[1755350051540,1.14246407,4419.0,4418.9,0.8234]
[1755350051828,0.97116407,4419.0,4418.9,1.4547]
[1755350052034,0.76462573,4419.0,4418.9,1.4547]
[1755350052236,0.10662573,4419.0,4418.9,1.4547]
[1755350052733,0.93592573,4419.0,4418.9,1.4547]
[1755350052934,0.93603758,4419.0,4418.9,1.4547]
[1755350053737,1.01673758,4419.0,4418.9,1.4547]
[1755350053933,1.06723758,4419.0,4418.9,1.4547]
[1755350054238,1.5210654,4419.0,4418.9,1.4547]
[1755350054634,1.5210577,4419.0,4418.9,1.4547]
[1755350056532,1.2737577,4419.0,4418.9,1.4547]
[1755350057132,1.5210577,4419.0,4418.7,3.2078]
[1755350057337,1.2078,4418.8,4418.5,0.4908]
[1755350057539,0.8293,4418.3,4418.2,1.4547]
[1755350058241,1.3145484,4418.3,4418.2,1.4547]
[1755350058547,1.0672484,4418.3,4418.2,1.4548]
[1755350059136,1.0167484,4418.3,4417.7,0.5031]
[1755350059331,0.5681,4418.3,4418.2,0.3405]
[1755350059534,0.93145738,4418.3,4418.2,0.8436]
[1755350059741,0.93145738,4418.3,4418.2,1.2229]
[1755350059942,0.99695738,4418.3,4418.2,1.4806]
[1755350060645,1.04745738,4418.3,4418.2,1.4806]
[1755350061542,0.91625738,4418.3,4418.2,1.4806]
[1755350062137,1.30415738,4418.3,4418.2,0.8436]
[1755350062537,1.51070111,4418.3,4418.2,0.8436]
[1755350062743,0.9303,4417.8,4417.7,0.8436]
[1755350063043,1.2957349,4417.8,4417.7,1.2229]
[1755350063337,1.2957349,4417.8,4417.6,3.2078]
[1755350063541,1.2957349,4417.7,4417.6,3.7109]
[1755350063847,1.2957349,4417.7,4417.6,4.0514]
[1755350065643,1.2957349,4417.7,4416.9,3.2078]
[1755350065842,0.9303,4417.3,4417.2,0.8436]
[1755350066137,1.29563887,4417.3,4417.2,1.2229]
[1755350066339,1.29563887,4417.3,4417.2,0.8436]
[1755350066535,1.1869,4417.2,4416.9,3.2078]
[1755350066739,1.29563887,4417.2,4417.1,0.94547564]
[1755350072145,1.1869,4417.2,4417.1,0.94547564]
[1755350073443,1.1869,4417.2,4417.1,0.10187564]
[1755350073645,4.50321959,4417.2,4417.1,0.10187564]
[1755350073949,4.71067882,4417.2,4417.1,0.10187564]
[1755350075141,4.71067882,4417.2,4417.1,0.94547564]
[1755350075442,4.24661959,4417.2,4417.1,1.58247564]
[1755350075649,4.50321959,4417.2,4417.1,1.58247564]
[1755350077748,3.94561959,4417.2,4417.1,1.58247564]
[1755350077948,4.11531959,4417.2,4417.1,1.58247564]
[1755350078150,4.19611959,4417.2,4417.1,1.58247564]
[1755350078339,4.50321959,4417.2,4417.1,1.58247564]
[1755350079449,3.31631959,4417.2,4417.1,1.20317564]
[1755350079642,3.2078,4417.2,4417.1,1.58247564]
[1755350080248,3.4645,4417.2,4417.1,1.58247564]
[1755350080456,4.3947,4417.2,4417.1,1.58247564]
[1755350080648,4.3947,4417.2,4417.1,0.94547564]
[1755350081350,4.50312177,4417.2,4417.1,0.10187564]
[1755350082253,4.71040139,4417.2,4417.1,0.10187564]
[1755350086259,4.71061341,4417.2,4417.1,0.10187564]
[1755350089661,4.71061341,4417.2,4416.3,0.5043]
[1755350089662,4.03091341,4417.2,4416.3,0.5043]
[1755350089857,0.8571,4416.4,4416.3,1.4628]
[1755350090055,0.96552177,4416.4,4416.3,1.4628]
[1755350090256,1.28762177,4416.4,4416.3,1.4628]
[1755350090558,0.99592177,4416.4,4416.3,1.4628]
[1755350090860,0.91482177,4416.4,4416.3,1.4628]
[1755350091156,0.10842177,4416.4,4416.3,1.4628]
[1755350091359,0.10842177,4416.4,4416.3,0.5789]
[1755350091557,0.6391,4416.7,4416.6,1.4628]
[1755350091763,0.95567451,4416.7,4416.6,1.4628]
[1755350092061,0.55887451,4416.7,4416.6,1.4628]
[1755350092262,1.12297451,4416.7,4416.6,1.4628]
[1755350092462,1.20407451,4416.7,4416.6,1.4628]
[1755350092661,4.70357451,4416.7,4416.6,1.4628]
[1755350092855,4.70357451,4416.7,4416.6,0.8331]
[1755350095855,4.33077451,4416.7,4416.6,0.8331]
[1755350096063,4.33077451,4416.7,4416.6,1.4628]
[1755350098369,4.46257451,4416.7,4416.6,1.4628]
[1755350099265,4.70357451,4416.7,4416.6,1.4628]
[1755350100059,4.70357451,4416.7,4416.6,0.5043]
[1755350100866,4.70357451,4416.7,4416.6,0.8331]
[1755350101065,3.76667451,4416.7,4416.6,1.4628]
[1755350101376,4.16347451,4416.7,4416.6,1.4628]
[1755350101562,4.33077451,4416.7,4416.6,1.4628]
[1755350101961,4.16347451,4416.7,4416.6,1.4628]
[1755350102569,4.33077451,4416.7,4416.6,1.4628]
[1755350103871,4.46257451,4416.7,4416.6,1.4628]
[1755350104369,4.70357451,4416.7,4416.6,1.2127]
[1755350104566,4.70357451,4416.7,4416.6,0.8331]
[1755350104771,0.3968,4416.6,4415.9,3.2078]
[1755350105071,0.3968,4416.3,4416.0,1.4628]
[1755350105271,0.31657451,4416.2,4416.1,1.4628]
[1755350105565,0.71337451,4416.2,4416.1,1.4628]
[1755350106074,0.31657451,4416.2,4416.1,1.4628]
[1755350106370,0.95567451,4416.2,4416.1,1.4628]
[1755350106569,0.55887451,4416.2,4416.1,0.8331]
[1755350106871,0.95567451,4416.2,4416.1,1.4628]
[1755350108167,0.31657451,4416.2,4416.1,1.4628]
[1755350108365,0.10874177,4416.2,4416.1,1.4628]
[1755350108562,0.3968,4417.2,4416.1,4.4628]
[1755350108763,0.20941294,4417.1,4417.0,1.4628]
[1755350108963,3.2078,4417.4,4417.1,0.8839]
[1755350109169,3.2078,4417.4,4417.3,1.4628]
[1755350109476,3.3078,4418.2,4418.1,1.4628]
[1755350109674,3.51703692,4418.2,4418.1,1.4628]
[1755350109875,3.92663692,4418.2,4418.1,1.4628]
[1755350110171,4.64783692,4418.2,4418.1,1.4628]
[1755350112375,4.88883692,4418.2,4418.1,1.4628]
[1755350113073,4.88883692,4418.2,4417.2,3.2078]
[1755350113074,0.2423,4417.3,4417.2,3.2078]
[1755350113279,1.3719,4417.2,4417.1,0.3288]
[1755350113480,1.02464799,4417.2,4416.2,0.884]
[1755350113681,0.9714,4417.0,4416.9,0.1622]
[1755350113876,1.58094799,4417.0,4416.9,0.8331]
[1755350114070,1.58094799,4417.0,4416.9,1.2128]
[1755350114271,1.58094799,4417.0,4416.9,0.8331]
[1755350114978,1.58094799,4417.0,4416.9,1.2128]
[1755350115181,1.18044799,4417.0,4416.9,1.4629]
[1755350115479,1.33994799,4417.0,4416.9,4.478856]
[1755350116073,1.18044799,4417.0,4416.9,4.478856]
[1755350116276,0.20904799,4417.0,4416.9,4.478856]
[1755350116581,1.18044799,4417.0,4416.9,4.478856]
[1755350116778,1.33994799,4417.0,4416.9,4.478856]
[1755350117078,1.58094799,4417.0,4416.9,3.015956]
[1755350119478,4.58094799,4417.0,4416.9,1.815956]
[1755350119679,0.5191,4415.9,4415.8,1.4818]
[1755350119878,1.01452511,4415.9,4415.8,1.059]
[1755350120075,1.01452511,4415.9,4415.8,1.4818]
[1755350120482,1.01452511,4415.9,4415.8,1.0972]
[1755350120781,1.12105401,4415.9,4415.8,1.0972]
[1755350121383,1.12105401,4415.9,4415.8,0.4228]
[1755350121679,1.12105401,4415.9,4414.2,1.99633492]
[1755350121680,0.8054,4415.2,4415.1,1.4818]
[1755350121884,4.06295401,4415.2,4414.2,3.2078]
[1755350122076,3.5673,4414.7,4414.6,0.596]
[1755350122273,4.06295401,4414.7,4414.6,1.4818]
[1755350122477,3.90335401,4414.7,4414.6,1.4818]
[1755350122877,4.32866524,4414.7,4414.6,1.4818]
[1755350123180,4.06276524,4414.7,4414.6,1.4818]
[1755350123889,4.32866524,4414.7,4414.6,1.4818]
[1755350124181,0.18,4414.6,4413.4,3.2078]
[1755350124382,0.4660289,4414.5,4414.4,0.596]
[1755350124584,0.9119289,4414.5,4414.4,1.4818]
[1755350125089,0.6460289,4414.5,4414.4,1.4818]
[1755350125583,0.9119289,4414.5,4414.4,1.4818]
[1755350125779,0.91001314,4414.5,4414.4,1.4818]
[1755350126180,0.91001314,4414.5,4414.4,4.497756]
[1755350126484,0.8054,4414.5,4414.4,4.497756]
[1755350127280,0.8054,4414.5,4414.4,3.866156]
[1755350127486,0.8054,4414.5,4414.4,3.611956]
[1755350127687,0.8054,4414.5,4414.4,4.113156]
[1755350127888,0.8054,4414.5,4414.4,4.497756]
[1755350129581,0.5395,4414.5,4414.4,3.265156]
[1755350129787,0.90985885,4414.5,4414.4,4.497756]
[1755350130189,0.10445885,4414.5,4414.4,4.497756]
[1755350130390,3.2078,4414.7,4414.4,3.611956]
[1755350130580,3.5347,4414.7,4414.6,0.4202]
[1755350130779,3.7473,4414.7,4414.6,1.4818]
[1755350130979,4.0132,4414.7,4414.6,1.4818]
[1755350131788,3.2078,4414.7,4414.6,1.4818]
[1755350131989,3.3731,4414.7,4414.6,1.4818]
[1755350132194,3.5551,4414.7,4414.6,1.4818]
[1755350133093,3.7147,4414.7,4414.6,1.4818]
[1755350133692,0.6254,4414.5,4414.4,3.270156]
[1755350133994,1.11638799,4414.5,4414.4,3.015956]
[1755350134388,1.01202076,4414.5,4414.4,3.015956]
[1755350134588,0.1596,4414.4,4413.4,0.247]
[1755350134791,3.2078,4413.7,4413.5,0.4252]
[1755350134992,3.2078,4413.7,4413.1,0.3846]
[1755350134993,3.3674,4413.7,4413.6,1.4818]
[1755350135186,3.529,4413.7,4413.6,1.4818]
[1755350137298,3.3694,4413.7,4413.6,1.4818]
[1755350137798,3.3694,4413.7,4412.7,3.2078]
[1755350137799,3.2078,4413.7,4412.7,3.2078]
[1755350138101,21.031,4414.3,4412.9,1.4818]